bitfinex-derivatives/quotes_ETHF0:USTF0_20240901
["timestamp","ask_amount","ask_price","bid_price","bid_amount"]
[1725151317599,0.39167812,2511.9,2511.8,0.39814]
[1725151317600,0.00597812,2511.9,2511.8,0.39814]
[1725151317796,0.00597812,2511.9,2511.8,2.38956537]
[1725151318193,0.00597812,2511.9,2511.8,3.95545418]
[1725151318600,0.00597812,2511.9,2511.8,2.38956537]
[1725151319193,0.00597812,2511.9,2511.8,3.95518389]
[1725151319499,0.00597812,2511.9,2511.8,2.38956537]
[1725151319700,0.00597812,2511.9,2511.8,3.95518265]
[1725151320005,0.00597812,2511.9,2511.8,2.38956537]
[1725151320199,0.00597812,2511.9,2511.8,3.55704875]
[1725151321404,0.00597812,2511.9,2511.8,3.55694595]
[1725151323612,0.40409812,2511.9,2511.8,1.99132257]
[1725151324407,0.40409812,2511.9,2511.8,1.0433868]
[1725151326908,0.39814,2511.8,2511.6,1.5716015]
[1725151327101,0.7334,2511.7,2511.6,0.00597812]
[1725151327408,0.00597812,2511.9,2511.7,0.39814]
[1725151327702,0.00597812,2511.9,2511.8,3.5565081]
[1725151329005,0.00597812,2511.9,2511.8,1.99148156]
[1725151331308,0.00597812,2511.9,2511.7,1.96317654]
[1725151331515,0.00597812,2511.9,2511.8,3.03468721]
[1725151336306,0.40409812,2511.9,2511.8,3.03468721]
[1725151336506,0.00597812,2511.9,2511.8,3.03467391]
[1725151338617,0.00597812,2511.9,2511.8,3.03467441]
[1725151341323,0.00597812,2511.9,2511.7,1.04331331]
[1725151342227,0.00597812,2511.9,2511.7,1.44146331]
[1725151343432,0.00597812,2511.9,2511.8,3.43276539]
[1725151343725,0.00597812,2511.9,2511.8,3.40502539]
[1725151345325,0.00597812,2511.9,2511.8,3.40501883]
[1725151346620,0.00597812,2511.9,2511.8,2.36171208]
[1725151346820,0.00597812,2511.9,2511.8,2.36170314]
[1725151347031,0.00597812,2511.9,2511.8,2.75984314]
[1725151347327,0.00597812,2511.9,2511.8,4.32486968]
[1725151348627,0.00597812,2511.9,2511.8,2.75984314]
[1725151351926,0.00597812,2511.9,2511.8,2.759844]
[1725151355319,0.00597812,2511.9,2511.8,4.84853686]
[1725151356833,0.00597812,2511.9,2511.8,8.83110855]
[1725151357226,0.00597812,2511.9,2511.8,8.83111112]
[1725151358433,0.00597812,2511.9,2511.8,9.22170072]
[1725151359326,0.00597812,2511.9,2511.8,9.22170339]
[1725151361532,0.00597812,2511.9,2511.8,9.22234712]
[1725151362035,0.00597812,2511.9,2511.8,8.83175485]
[1725151362236,0.00597812,2511.9,2511.8,9.2223502]
[1725151362741,0.00597812,2511.9,2511.8,4.45104059]
[1725151363136,0.00597812,2511.9,2511.8,4.08064059]
[1725151367135,0.00597812,2511.9,2511.8,2.08933659]
[1725151367436,0.00597812,2511.9,2511.8,4.08068986]
[1725151372347,0.00597812,2511.9,2511.8,4.08071073]
[1725151373341,0.00597812,2511.9,2511.8,8.06338607]
[1725151373740,0.00597812,2511.9,2511.8,4.08071073]
[1725151373941,0.00597812,2511.9,2511.8,8.0634267]
[1725151374142,0.00597812,2511.9,2511.8,8.45402656]
[1725151375846,0.00597812,2511.9,2511.8,8.85216656]
[1725151376752,0.00597812,2511.9,2511.8,7.14802997]
[1725151377348,0.00597812,2511.9,2511.8,1.17393986]
[1725151377657,0.00597812,2511.9,2511.8,7.14781077]
[1725151380443,0.00597812,2511.9,2511.8,6.75721091]
[1725151380644,0.00597812,2511.9,2511.8,7.14779735]
[1725151382158,0.00597812,2511.9,2511.8,12.55859735]
[1725151382453,0.00597812,2511.9,2511.8,13.89975034]
[1725151382655,0.00180986,2511.9,2511.8,19.87280289]
[1725151382854,0.00180986,2511.9,2511.8,19.87291461]
[1725151383254,0.00180986,2511.9,2511.8,25.87291461]
[1725151383550,0.00180986,2511.9,2511.8,19.89975034]
[1725151383751,0.00180986,2511.9,2511.8,25.87286143]
[1725151384450,0.00180986,2511.9,2511.8,19.89975034]
[1725151386354,0.00180986,2511.9,2511.8,18.55859735]
[1725151386756,0.00180986,2511.9,2511.8,19.89970654]
[1725151387454,0.00082189,2511.9,2511.8,18.55859735]
[1725151388058,0.00082189,2511.9,2511.8,12.55859735]
[1725151390163,0.00082189,2511.9,2511.8,13.89971444]
[1725151391258,0.00082189,2511.9,2511.8,13.89900973]
[1725151391659,0.00082189,2511.9,2511.8,12.55789264]
[1725151391956,0.00082189,2511.9,2511.8,12.55788913]
[1725151392959,0.00082189,2511.9,2511.8,13.89899242]
[1725151393151,0.00082189,2511.9,2511.8,12.55788913]
[1725151394862,0.00082189,2511.9,2511.8,12.55784627]
[1725151395558,0.00082189,2511.9,2511.8,13.89893628]
[1725151396147,0.00082189,2511.9,2511.8,13.89868068]
[1725151396755,0.00082189,2511.9,2511.8,12.55759067]
[1725151397455,0.00082189,2511.9,2511.8,19.89864639]
[1725151398659,0.00082189,2511.9,2511.8,24.02624945]
[1725151398866,3.2078,2512.5,2512.4,0.39804]
[1725151399156,3.2078,2512.5,2512.4,3.95319917]
[1725151399562,3.2078,2512.5,2512.4,3.95318966]
[1725151399760,3.2078,2512.5,2512.4,3.55514966]
[1725151399962,3.5778,2512.5,2512.4,3.03370113]
[1725151400163,3.5778,2512.5,2512.4,1.04278175]
[1725151401059,3.97582,2512.5,2512.4,1.04278175]
[1725151402757,0.76802,2512.5,2512.4,1.04278175]
[1725151403757,0.37,2512.5,2512.4,1.04278175]
[1725151410062,0.37,2512.5,2512.4,3.03361237]
[1725151410765,0.37,2512.5,2512.4,3.43165237]
[1725151411266,0.37,2512.5,2512.4,3.95325035]
[1725151411461,0.37,2512.5,2512.4,3.95312841]
[1725151411659,0.7582,2512.6,2512.5,0.39802]
[1725151411863,0.7582,2512.6,2512.5,1.43997846]
[1725151412058,0.7582,2512.6,2512.5,2.86997846]
[1725151415872,0.7582,2512.6,2512.5,5.38308798]
[1725151416083,0.7582,2512.6,2512.5,3.81870825]
[1725151416462,0.7582,2512.6,2512.5,5.38163177]
[1725151417071,0.7582,2512.6,2512.5,3.81866923]
[1725151420563,0.7582,2512.6,2512.5,5.38179683]
[1725151420973,0.7582,2512.6,2512.5,3.81866923]
[1725151421661,0.7582,2512.6,2512.5,3.81866828]
[1725151424573,0.7582,2512.6,2512.5,3.42064828]
[1725151426167,0.7582,2512.6,2512.5,3.81866828]
[1725151426667,0.7582,2512.6,2512.5,3.81869619]
[1725151430983,0.7582,2512.6,2512.5,5.90452855]
[1725151431668,0.7582,2512.6,2512.5,5.90449138]
[1725151433381,0.7582,2512.6,2512.5,9.88563418]
[1725151434279,0.7582,2512.6,2512.5,4.4744463]
[1725151434482,0.7582,2512.6,2512.5,5.9044463]
[1725151435281,0.7582,2512.6,2512.5,5.5064263]
[1725151436681,0.7582,2512.6,2512.5,5.5065153]
[1725151437576,0.7582,2512.6,2512.5,9.48785155]
[1725151437782,0.7582,2512.6,2512.5,5.5065153]
[1725151438481,0.7582,2512.6,2512.5,9.48788005]
[1725151440977,0.7582,2512.6,2512.5,9.48789561]
[1725151443178,0.7582,2512.6,2512.5,8.05789561]
[1725151443381,17.06534103,2512.6,2512.4,1.56540125]
[1725151443582,4.74422,2512.5,2512.4,1.04375289]
[1725151443980,8.9486968,2512.5,2512.4,1.04375289]
[1725151444186,0.39804,2512.4,2512.3,1.04375289]
[1725151444387,0.39804,2512.4,2512.3,3.03483657]
[1725151444587,4.37804,2512.4,2512.3,3.03482466]
[1725151444786,4.37804,2512.4,2512.3,1.04375289]
[1725151448085,0.39806,2512.3,2512.2,1.56540125]
[1725151448291,3.9808,2512.3,2512.0,0.45649087]
[1725151448478,3.2078,2512.2,2511.9,1.56540125]
[1725151448792,4.15871319,2512.1,2512.0,1.99123163]
[1725151449092,4.15871319,2512.3,2512.0,3.55663288]
[1725151449286,4.15871319,2512.3,2512.1,0.3561]
[1725151449488,3.2078,2512.4,2512.1,0.3561]
[1725151449889,4.51242278,2512.3,2512.1,0.3561]
[1725151451282,4.87262278,2512.3,2512.1,0.3561]
[1725151451592,0.3883,2512.2,2512.1,0.3561]
[1725151451983,0.3883,2512.2,2511.9,1.7929]
[1725151453089,0.3883,2512.2,2511.9,0.3629]
[1725151456296,0.78637,2512.2,2511.9,0.3629]
[1725151456594,0.39809,2512.1,2511.9,0.3629]
[1725151457397,4.89355585,2512.0,2511.7,5.71340125]
[1725151457602,0.3728,2511.9,2511.6,6.20917937]
[1725151457899,0.7391,2511.9,2511.7,1.99133297]
[1725151458112,0.7391,2511.9,2511.6,6.20917937]
[1725151458292,0.7391,2511.9,2511.7,1.99133579]
[1725151458494,0.7391,2511.9,2511.6,6.20917937]
[1725151458703,1.13722,2511.9,2511.7,1.99132637]
[1725151458903,0.7391,2511.9,2511.6,6.20917937]
[1725151459096,1.13722,2511.9,2511.7,1.9913222]
[1725151459293,1.13722,2511.9,2511.6,6.20917937]
[1725151459499,1.13722,2511.9,2511.7,1.99131789]
[1725151459695,1.13722,2511.9,2511.6,6.20917937]
[1725151459888,1.13722,2511.9,2511.7,1.99132577]
[1725151460094,1.13722,2511.9,2511.6,6.20917937]
[1725151460303,1.13722,2511.9,2511.7,1.99131697]
[1725151460498,1.13722,2511.9,2511.6,6.20917937]
[1725151461294,1.13722,2511.9,2511.6,3.00137937]
[1725151461499,1.13722,2511.9,2511.7,1.43]
[1725151461693,1.13722,2511.9,2511.7,1.8199]
[1725151461893,1.13722,2511.9,2511.8,0.3653]
[1725151462691,1.39354,2511.7,2511.6,0.00597812]
[1725151462892,6.22958376,2511.7,2511.6,0.00597812]
[1725151463088,20.64199123,2511.7,2511.6,0.00597812]
[1725151465100,0.39822,2511.3,2511.1,0.3653]
[1725151465503,0.3752,2511.2,2511.1,0.3653]
[1725151466498,0.77343,2511.2,2511.1,0.3653]
[1725151466905,4.75583,2511.2,2511.1,0.3653]
[1725151467107,0.39826,2511.0,2510.9,0.00597812]
[1725151467506,0.39833,2510.6,2510.4,0.3732]
[1725151467702,0.3586,2510.5,2510.4,0.3732]
[1725151468709,10.3418,2510.5,2510.2,0.35957812]
[1725151468906,1.82837,2510.3,2510.2,0.00597812]
[1725151469403,10.06700474,2510.3,2510.2,0.00597812]
[1725151469616,10.26577893,2510.3,2510.2,0.00597812]
[1725151471405,10.06700474,2510.3,2510.2,0.00597812]
[1725151472909,0.39843,2510.0,2509.7,0.3615]
[1725151473211,4.52149249,2509.9,2509.7,0.3615]
[1725151473711,5.414,2509.8,2509.4,0.3709]
[1725151474008,5.414,2509.8,2508.7,0.39862]
[1725151474009,0.39853,2509.4,2508.7,0.39862]
[1725151474217,1.43,2509.1,2508.7,0.39863]
[1725151474901,3.2078,2509.3,2508.7,1.43]
[1725151475405,3.2078,2509.3,2508.8,0.3986]
[1725151475615,0.3824,2509.2,2508.8,0.3986]
[1725151479306,3.8224,2509.2,2508.7,0.39862]
[1725151479607,4.22095,2509.2,2508.7,0.39862]
[1725151480215,4.22095,2509.2,2508.6,0.7297]
[1725151480216,3.83858,2509.0,2508.6,0.7297]
[1725151480417,3.44,2509.0,2508.6,1.12834]
[1725151481604,3.44,2509.0,2508.7,0.39863]
[1725151482710,0.3824,2509.2,2508.6,0.7297]
[1725151482909,0.3824,2509.2,2508.9,0.39859]
[1725151483213,4.36248725,2509.0,2508.9,0.39859]
[1725151483417,4.36248725,2509.1,2508.9,0.39859]
[1725151483614,0.3824,2509.2,2508.9,0.39859]
[1725151484007,4.58490472,2509.1,2508.9,0.39859]
[1725151485410,3.2078,2509.0,2508.4,3.2078]
[1725151485616,3.5849,2509.0,2508.7,0.39862]
[1725151485817,4.31503198,2508.9,2508.7,0.39862]
[1725151486709,3.5849,2509.0,2508.8,0.39861]
[1725151487210,3.2078,2509.0,2508.8,0.39861]
[1725151487418,3.2078,2509.0,2508.9,0.3754]
[1725151487922,3.44,2509.1,2508.9,0.3754]
[1725151488317,4.48805884,2509.0,2508.9,0.3754]
[1725151489224,4.48805884,2509.0,2508.9,0.774]
[1725151489523,7.0198,2509.3,2508.9,0.3754]
[1725151489818,7.0198,2509.3,2508.9,0.39859]
[1725151490026,7.0198,2509.3,2508.4,3.2078]
[1725151490027,4.29383964,2509.2,2508.4,3.2078]
[1725151490317,4.29383964,2509.2,2508.8,0.3986]
[1725151490518,0.7262,2509.1,2508.8,0.3986]
[1725151490827,0.7262,2509.1,2508.4,3.2078]
[1725151490828,3.2078,2508.9,2508.0,0.99686]
[1725151491025,3.44,2508.8,2508.1,1.1319]
[1725151491322,3.83867,2508.5,2508.1,1.16251]
[1725151491512,3.83867,2508.5,2507.8,3.2078]
[1725151491513,0.3816,2508.4,2507.8,3.2078]
[1725151491709,6.6478,2508.3,2507.6,0.7588]
[1725151491924,7.0465,2508.3,2507.6,0.7588]
[1725151492126,4.58216716,2508.2,2507.6,0.7588]
[1725151492423,3.96977812,2508.4,2508.0,0.39873]
[1725151492812,4.53183283,2508.2,2508.0,0.39873]
[1725151493017,4.53183283,2508.3,2508.0,0.39873]
[1725151493213,3.44,2508.3,2508.0,0.39873]
[1725151493415,7.97183283,2508.3,2508.0,0.39873]
[1725151498230,4.53183283,2508.3,2508.1,0.39872]
[1725151498620,4.53183283,2508.3,2508.0,0.39873]
[1725151500029,4.53183283,2508.3,2508.1,0.39872]
[1725151500524,4.53183283,2508.3,2508.2,0.3607]
[1725151501821,4.53183283,2508.3,2508.2,0.75941]
[1725151502028,0.00597812,2508.4,2508.3,0.39869]
[1725151502224,0.00597812,2508.4,2508.3,0.78949]
[1725151502531,0.00597812,2508.4,2508.3,4.77589]
[1725151503226,0.00597812,2508.4,2508.3,5.16639]
[1725151504025,0.00180891,2508.4,2508.3,5.16639]
[1725151505242,3.5782,2509.0,2508.3,17.4155]
[1725151505445,3.2078,2509.0,2508.3,3.9891]
[1725151505731,8.31883606,2508.9,2508.4,0.39866]
[1725151506141,8.31883606,2508.9,2508.3,4.38778]
[1725151506142,8.71743606,2508.9,2508.3,4.38778]
[1725151506347,8.72341418,2508.9,2508.3,3.99728]
[1725151506636,0.39864,2508.7,2508.3,3.5986]
[1725151506831,0.39862,2508.8,2508.3,3.5986]
[1725151507039,0.378,2508.6,2508.3,3.5986]
[1725151507641,6.6478,2508.4,2508.1,0.00471481]
[1725151507823,0.3987,2508.3,2508.1,0.00471481]
[1725151508030,0.39871,2508.2,2508.1,0.00471481]
[1725151508324,0.77671,2508.2,2508.1,0.00471481]
[1725151508730,0.378,2508.2,2508.1,0.00471481]
[1725151509042,0.77671,2508.2,2508.1,0.00471481]
[1725151509837,3.98451,2508.2,2508.1,0.00471481]
[1725151510545,3.5858,2508.2,2508.1,0.00471481]
[1725151511035,3.98451,2508.2,2508.1,0.00471481]
[1725151511727,3.5858,2508.2,2508.1,0.00471481]
[1725151512128,3.98451,2508.2,2508.1,0.00471481]
[1725151514333,4.37031,2508.2,2508.1,0.00471481]
[1725151515236,12.58725029,2508.2,2508.1,0.00471481]
[1725151517331,8.60005029,2508.2,2508.1,0.00471481]
[1725151517536,7.81554029,2508.2,2508.1,0.00471481]
[1725151517934,7.81554029,2508.2,2508.1,0.36171481]
[1725151518142,4.60774029,2508.2,2508.1,0.71911481]
[1725151518332,5.00645029,2508.2,2508.1,0.71911481]
[1725151518535,5.00645029,2508.2,2508.1,0.36171481]
[1725151518935,4.60774029,2508.2,2508.1,0.36171481]
[1725151522341,4.22974029,2508.2,2508.1,0.36171481]
[1725151522535,4.22974029,2508.2,2508.1,0.76043481]
[1725151522753,3.2078,2508.4,2508.3,0.39869]
[1725151523046,0.75282,2508.8,2508.6,0.39864]
[1725151523047,3.2078,2508.7,2508.6,0.39864]
[1725151523248,3.44,2508.8,2508.6,0.39864]
[1725151523453,4.46650744,2508.7,2508.6,0.39864]
[1725151526251,3.44,2508.8,2508.7,0.39863]
[1725151529157,0.00597812,2508.9,2508.8,0.39861]
[1725151529350,0.00597812,2508.9,2508.8,0.77621]
[1725151529660,0.00597812,2508.9,2508.8,6.75540596]
[1725151529950,0.00597812,2508.9,2508.8,6.75540841]
[1725151530154,0.00597812,2508.9,2508.8,4.76181]
[1725151530657,0.00597812,2508.9,2508.8,6.75538724]
[1725151530841,0.00597812,2508.9,2508.8,4.76181]
[1725151531045,0.00597812,2508.9,2508.8,6.7553679]
[1725151531455,0.00597812,2508.9,2508.8,4.76181]
[1725151531955,0.00597812,2508.9,2508.8,6.755372]
[1725151533350,0.00597812,2508.9,2508.8,2.392172]
[1725151533556,0.00597812,2508.9,2508.6,1.96404125]
[1725151533747,3.44,2508.8,2508.6,0.39864]
[1725151535354,3.83862,2508.8,2508.5,1.56540125]
[1725151535659,3.83862,2508.8,2508.4,5.17187125]
[1725151535850,3.83862,2508.8,2508.4,3.60647]
[1725151537256,3.83861,2508.8,2508.4,3.60647]
[1725151537958,3.83861,2508.8,2508.4,0.39867]
[1725151538157,3.83861,2508.8,2508.4,1.96407125]
[1725151538654,3.83861,2508.8,2508.4,0.39867]
[1725151539055,3.44,2508.8,2508.4,0.39867]
[1725151539256,3.44,2508.8,2508.4,1.96407125]
[1725151539649,3.44,2508.8,2508.4,0.39867]
[1725151539956,4.22263397,2508.7,2508.4,0.39867]
[1725151541160,7.43043397,2508.7,2508.4,0.39867]
[1725151541860,7.43043397,2508.7,2508.5,0.39866]
[1725151545059,4.22263397,2508.7,2508.5,0.39866]
[1725151549663,4.22263397,2508.7,2508.3,1.56540125]
[1725151549968,3.2078,2508.5,2508.3,1.96409125]
[1725151550457,0.3571,2508.4,2508.3,1.96409125]
[1725151550656,0.3571,2508.4,2508.3,3.9581248]
[1725151550863,0.3571,2508.4,2508.3,1.96409125]
[1725151551063,0.3571,2508.4,2508.3,3.95812823]
[1725151551467,6.6478,2508.8,2508.3,7.54583823]
[1725151551665,0.3571,2508.7,2508.4,3.55930156]
[1725151551866,0.3571,2508.7,2508.4,1.56540125]
[1725151552064,3.2078,2508.8,2508.5,0.3581]
[1725151552365,3.2078,2508.8,2508.7,0.39863]
[1725151552759,3.2078,2508.8,2508.7,0.75963]
[1725151552956,3.2078,2508.8,2508.7,4.74603]
[1725151554262,3.2078,2508.8,2508.7,0.75963]
[1725151555065,0.00597812,2508.9,2508.8,0.39861]
[1725151558858,0.00597812,2508.9,2508.8,3.95762412]
[1725151559471,3.44597812,2508.9,2508.8,1.99361287]
[1725151559667,3.80367812,2508.9,2508.7,2.32502125]
[1725151559863,3.80367812,2508.9,2508.7,0.361]
[1725151560575,3.80367812,2508.9,2508.7,0.75963]
[1725151560875,3.80367812,2508.9,2508.6,1.56540125]
[1725151561082,3.44,2508.7,2508.6,1.56540125]
[1725151561374,3.44,2508.7,2508.6,3.55919889]
[1725151561963,2.84185858,2508.7,2508.6,3.55919889]
[1725151562169,2.84185858,2508.7,2508.6,1.99379764]
[1725151562377,2.84185858,2508.7,2508.5,2.32215125]
[1725151562576,2.84185858,2508.7,2508.6,1.99382174]
[1725151562974,2.84185858,2508.7,2508.6,2.39246174]
[1725151563181,3.80367812,2508.9,2508.6,3.95786299]
[1725151563482,3.80367812,2508.9,2508.7,1.99379577]
[1725151563669,3.80367812,2508.9,2508.6,2.32684125]
[1725151563976,3.80367812,2508.9,2508.7,1.99379663]
[1725151564180,3.44597812,2508.9,2508.6,2.32684125]
[1725151564378,3.44597812,2508.9,2508.7,3.55919778]
[1725151564572,3.44597812,2508.9,2508.8,0.3635]
[1725151565774,3.80077812,2508.9,2508.7,1.56540125]
[1725151566277,4.18067812,2508.9,2508.7,1.56540125]
[1725151566580,4.18067812,2508.9,2508.8,1.9937992]
[1725151568085,3.82587812,2508.9,2508.8,1.9937992]
[1725151568385,3.82587812,2508.9,2508.8,3.55920045]
[1725151569281,3.82587812,2508.9,2508.8,3.55923724]
[1725151570077,3.82587812,2508.9,2508.8,3.03888013]
[1725151570274,1.82587812,2508.9,2508.8,3.03888013]
[1725151570871,2.22447812,2508.9,2508.8,1.04504414]
[1725151571084,1.82587812,2508.9,2508.8,1.04504414]
[1725151571272,10.69868549,2508.9,2508.8,1.04504414]
[1725151571888,0.39861,2508.8,2508.7,1.04504414]
[1725151572079,7.59201,2508.8,2508.7,1.04504414]
[1725151572279,11.98753396,2508.8,2508.7,1.04504414]
[1725151572979,0.39863,2508.7,2508.6,1.04504414]
[1725151573183,0.39864,2508.6,2508.5,1.04504414]
[1725151573481,0.75174,2508.6,2508.4,1.04504414]
[1725151573682,2.2045,2508.5,2508.4,1.04504414]
[1725151573883,2.2045,2508.5,2508.4,3.0392301]
[1725151574085,2.2045,2508.5,2508.4,1.04504414]
[1725151574279,2.2045,2508.5,2508.4,3.03921181]
[1725151574480,2.2045,2508.5,2508.4,1.04504414]
[1725151574681,2.2045,2508.5,2508.4,1.99416634]
[1725151574886,1.7931,2508.6,2508.4,3.55956759]
[1725151575088,1.44,2508.6,2508.5,3.93396759]
[1725151575384,1.44,2508.6,2508.5,3.12752634]
[1725151575594,1.44,2508.6,2508.5,5.2133587]
[1725151575992,1.44,2508.6,2508.5,3.12752634]
[1725151576394,1.44,2508.6,2508.5,5.2133587]
[1725151577288,1.44,2508.6,2508.5,4.8146987]
[1725151577481,1.44,2508.6,2508.5,2.72886634]
[1725151577683,1.44,2508.6,2508.5,4.29640193]
[1725151578205,1.44,2508.6,2508.5,4.29621425]
[1725151578694,1.44,2508.6,2508.5,4.69487425]
[1725151578997,1.44,2508.6,2508.5,3.12733866]
[1725151579292,1.44,2508.6,2508.5,2.72866465]
[1725151582490,1.44,2508.6,2508.5,3.12732465]
[1725151583597,1.44,2508.6,2508.5,2.72866465]
[1725151583997,1.44,2508.6,2508.5,2.36836465]
[1725151584193,1.83864,2508.6,2508.5,3.56183996]
[1725151584893,1.83864,2508.6,2508.5,3.03924379]
[1725151586700,1.83864,2508.6,2508.5,3.39914379]
[1725151589202,1.83864,2508.6,2508.5,3.3992871]
[1725151589403,1.83864,2508.6,2508.5,1.40517914]
[1725151589699,1.44,2508.6,2508.5,2.35400519]
[1725151589905,1.44,2508.6,2508.5,3.9218805]
[1725151590706,1.44,2508.6,2508.5,3.39896496]
[1725151591404,1.44,2508.6,2508.5,3.9218805]
[1725151593407,1.44,2508.6,2508.5,2.35400519]
[1725151594004,1.44,2508.6,2508.5,3.9218805]
[1725151594412,1.44,2508.6,2508.5,3.92174815]
[1725151595604,1.44,2508.6,2508.5,2.35387284]
[1725151595907,1.44,2508.6,2508.5,3.92174815]
[1725151596607,1.44,2508.6,2508.5,2.35387284]
[1725151596805,1.44,2508.6,2508.5,3.39870281]
[1725151597307,1.44,2508.6,2508.5,3.92174815]
[1725151597609,1.44,2508.6,2508.5,2.35387284]
[1725151597814,1.44,2508.6,2508.5,3.92174815]
[1725151598205,1.44,2508.6,2508.5,2.35387284]
[1725151598715,1.44,2508.6,2508.5,3.92174815]
[1725151598902,1.44,2508.6,2508.5,2.35387284]
[1725151599100,1.44,2508.6,2508.5,3.398691]
[1725151599312,1.44,2508.6,2508.5,3.39872854]
[1725151599518,1.44,2508.6,2508.5,3.92178569]
[1725151600723,3.56787812,2508.9,2508.5,3.92178569]
[1725151600908,3.21377812,2508.9,2508.8,1.44343746]
[1725151601109,3.21377812,2508.9,2508.8,3.9602477]
[1725151601314,3.21377812,2508.9,2508.8,3.10077239]
[1725151601708,3.21377812,2508.9,2508.8,7.08637239]
[1725151601905,3.2078,2509.3,2509.2,0.39855]
[1725151602215,1.44,2509.4,2509.3,0.39853]
[1725151602404,1.44,2509.4,2509.3,5.03623552]
[1725151604113,1.44,2509.4,2509.3,5.03614939]
[1725151604612,1.44,2509.4,2509.3,3.46939878]
[1725151604812,1.44,2509.4,2509.3,4.51285909]
[1725151605011,1.44,2509.4,2509.3,1.04346031]
[1725151605208,1.44,2509.4,2509.2,1.04346031]
[1725151605209,1.8167,2509.4,2509.2,1.04346031]
[1725151607119,1.8167,2509.4,2509.2,1.44201031]
[1725151607521,1.8167,2509.4,2509.2,0.39855]
[1725151609017,1.8167,2509.4,2509.3,0.3733]
[1725151609918,0.00597812,2509.6,2509.4,0.39851]
[1725151610108,1.44597812,2509.6,2509.5,0.7322]
[1725151610915,1.44597812,2509.6,2509.5,1.1307]
[1725151611923,1.44597812,2509.6,2509.5,2.17416031]
[1725151612528,1.44597812,2509.6,2509.5,1.1307]
[1725151613023,0.00597812,2509.6,2509.5,5.1155]
[1725151613538,0.00597812,2509.6,2509.5,6.15896031]
[1725151614529,0.00597812,2509.6,2509.5,5.1155]
[1725151614725,0.00597812,2509.6,2509.5,6.15896031]
[1725151614917,1.44,2509.9,2509.8,0.39845]
[1725151621525,0.38977812,2510.1,2510.0,0.39842]
[1725151622229,0.38977812,2510.1,2510.0,1.16862]
[1725151625937,0.00597812,2510.1,2510.0,1.16862]
[1725151626530,0.00597812,2510.1,2510.0,0.3885]
[1725151626837,0.00597812,2510.1,2509.8,0.39845]
[1725151627029,1.44,2510.0,2509.8,0.39845]
[1725151627438,0.3808,2509.9,2509.8,0.39845]
[1725151627628,0.17298866,2509.9,2509.8,4.38245]
[1725151630141,0.00597812,2510.1,2509.9,0.39842]
[1725151630539,0.00597812,2510.1,2510.0,0.379]
[1725151630745,0.00597812,2510.1,2510.0,0.77742]
[1725151631340,0.00597812,2510.1,2510.0,0.379]
[1725151631537,0.00597812,2510.1,2509.9,0.39843]
[1725151631740,1.44,2510.0,2509.7,1.52236]
[1725151631940,1.8044,2510.0,2509.7,1.1239]
[1725151632243,0.3732,2509.9,2509.6,3.61225812]
[1725151632439,0.7517,2509.9,2509.6,3.61225812]
[1725151634535,0.7517,2509.9,2509.6,0.40445812]
[1725151634736,0.7517,2509.9,2509.6,3.61225812]
[1725151639045,0.3732,2509.9,2509.7,0.39846]
[1725151639246,0.00597812,2510.1,2509.6,3.21377812]
[1725151639444,0.00597812,2510.1,2509.9,0.39843]
[1725151639640,0.00597812,2510.1,2510.0,0.3782]
[1725151640447,0.00597812,2510.1,2510.0,0.77662]
[1725151642139,1.44597812,2510.1,2509.9,0.3842]
[1725151642347,0.39843,2510.0,2509.6,1.04943843]
[1725151642537,1.8306,2509.9,2509.6,1.04943843]
[1725151642735,1.8306,2509.9,2509.6,0.00597812]
[1725151642736,2.22904,2509.9,2509.6,0.00597812]
[1725151644344,2.22904,2509.9,2509.6,1.04943843]
[1725151644643,2.22904,2509.9,2509.6,0.00597812]
[1725151645340,0.39845,2509.8,2509.6,0.00597812]
[1725151646452,2.22905,2509.9,2509.6,1.04943843]
[1725151646639,0.39846,2509.8,2509.6,1.04943843]
[1725151647344,0.39846,2509.8,2509.7,1.04346031]
[1725151648052,0.39846,2509.8,2509.6,1.57272873]
[1725151648053,0.39846,2509.8,2509.6,1.04943843]
[1725151648250,2.22905,2509.9,2509.6,1.04943843]
[1725151648451,2.22905,2509.9,2509.7,1.04346031]
[1725151649746,0.39845,2509.8,2509.7,1.04346031]
[1725151652453,0.39845,2509.8,2509.7,3.03649161]
[1725151652651,0.39845,2509.8,2509.7,3.03649165]
[1725151653556,0.39845,2509.8,2509.7,1.99303134]
[1725151654556,0.39845,2509.8,2509.7,3.55978195]
[1725151656066,3.60625,2509.8,2509.7,3.55978195]
[1725151656456,0.39845,2509.8,2509.7,3.55978195]
[1725151656657,3.60625,2509.8,2509.7,3.55978195]
[1725151657054,0.39845,2509.8,2509.7,3.55978195]
[1725151657258,3.60625,2509.8,2509.7,3.55978195]
[1725151657760,2.22905,2509.9,2509.7,3.55978947]
[1725151658057,2.22905,2509.9,2509.8,3.55978947]
[1725151660566,2.22905,2509.9,2509.8,3.03782272]
[1725151661854,5.43685,2509.9,2509.8,3.03782272]
[1725151662861,5.43685,2509.9,2509.8,3.03782014]
[1725151665164,5.43685,2509.9,2509.8,4.60457075]
[1725151665360,20.90613622,2509.9,2509.8,1.04472847]
[1725151665562,20.90613622,2509.9,2509.6,0.00597812]
[1725151665563,1.39465,2509.7,2509.6,0.00597812]
[1725151665762,2.83465,2509.7,2509.6,0.00597812]
[1725151665964,17.30863622,2509.7,2509.6,0.00597812]
[1725151672272,14.87245622,2509.7,2509.6,0.00597812]
[1725151672478,10.31245622,2509.7,2509.6,0.00597812]
[1725151672679,6.32765622,2509.7,2509.6,0.00597812]
[1725151674376,5.92918622,2509.7,2509.6,0.00597812]
[1725151674578,1.44,2509.8,2509.6,0.00597812]
[1725151674784,3.2078,2509.9,2509.6,0.00597812]
[1725151674785,3.60625,2509.9,2509.6,0.00597812]
[1725151674978,1.44,2509.7,2509.6,0.37547812]
[1725151682287,3.60625,2509.9,2509.6,0.37547812]
[1725151682288,3.2078,2509.9,2509.6,4.36027812]
[1725151682483,1.44597812,2510.1,2509.8,0.39844]
[1725151682697,1.44597812,2510.1,2509.9,0.3618]
[1725151682897,1.44597812,2510.1,2510.0,0.362]
[1725151683395,5.82663661,2510.1,2510.0,0.362]
[1725151688584,6.22504661,2510.1,2510.0,0.362]